[Event "*** Titled Tuesday Blitz"]
[Site "Chess.com"]
[Date "2020.05.12"]
[Round "7"]
[White "Nagimov_Artiom"]
[Black "stanyga"]
[Result "0-1"]
[WhiteElo "2401"]
[BlackElo "2637"]
[TimeControl "180+1"]
[EndTime "11:17:16 PDT"]
[Termination "stanyga won by resignation"]

1. d4 {[%clk 0:03:00.9]} 1... d5 {[%clk 0:02:59.1]} 2. Nf3 {[%clk 0:03:00.8]}
2... Nf6 {[%clk 0:02:58]} 3. c4 {[%clk 0:03:00.8]} 3... c6 {[%clk 0:02:58.1]} 4.
e3 {[%clk 0:03:00.6]} 4... e6 {[%clk 0:02:58]} 5. Nc3 {[%clk 0:03:00.6]} 5...
Nbd7 {[%clk 0:02:57.9]} 6. Qc2 {[%clk 0:03:00.7]} 6... Bd6 {[%clk 0:02:46.6]} 7.
b3 {[%clk 0:03:00.5]} 7... O-O {[%clk 0:02:43.1]} 8. Be2 {[%clk 0:03:01.1]} 8...
b6 {[%clk 0:02:41.7]} 9. O-O {[%clk 0:03:01.1]} 9... Bb7 {[%clk 0:02:42.1]} 10.
Bb2 {[%clk 0:03:01.8]} 10... Re8 {[%clk 0:02:40.9]} 11. Rad1 {[%clk 0:03:02.2]}
11... Rc8 {[%clk 0:02:39.6]} 12. Rfe1 {[%clk 0:03:01.5]} 12... c5 {[%clk
0:02:38.4]} 13. cxd5 {[%clk 0:03:02]} 13... exd5 {[%clk 0:02:33.2]} 14. Qf5
{[%clk 0:03:00.7]} 14... Qe7 {[%clk 0:02:30.2]} 15. Qh3 {[%clk 0:02:40]} 15...
Qe6 {[%clk 0:02:21.8]} 16. Qxe6 {[%clk 0:02:30.5]} 16... fxe6 {[%clk 0:02:22.7]}
17. Rd2 {[%clk 0:02:22.8]} 17... cxd4 {[%clk 0:02:11.2]} 18. Nxd4 {[%clk
0:02:22.1]} 18... Bb4 {[%clk 0:02:11.1]} 19. Rc1 {[%clk 0:02:17.7]} 19... e5
{[%clk 0:01:45.1]} 20. Nf5 {[%clk 0:02:17.8]} 20... g6 {[%clk 0:01:32.8]} 21.
Ng3 {[%clk 0:02:17.5]} 21... Nc5 {[%clk 0:01:08.3]} 22. Rdd1 {[%clk 0:02:04.7]}
22... Red8 {[%clk 0:00:48.5]} 23. Nb5 {[%clk 0:01:56.8]} 23... a6 {[%clk
0:00:41.3]} 24. a3 {[%clk 0:01:26.5]} 24... axb5 {[%clk 0:00:39.5]} 25. axb4
{[%clk 0:01:26.4]} 25... Nxb3 {[%clk 0:00:39.5]} 26. Rxc8 {[%clk 0:01:26]} 26...
Rxc8 {[%clk 0:00:38.1]} 27. Bxe5 {[%clk 0:01:26.6]} 27... Nd7 {[%clk 0:00:27.8]}
28. Bf4 {[%clk 0:01:18.7]} 28... Rc2 {[%clk 0:00:09.2]} 29. Bxb5 {[%clk
0:01:14]} 29... Bc6 {[%clk 0:00:09.5]} 30. Bd3 {[%clk 0:01:05.1]} 30... Rb2
{[%clk 0:00:08.5]} 31. h4 {[%clk 0:00:58.7]} 31... Kf7 {[%clk 0:00:07.7]} 32. h5
{[%clk 0:00:56.5]} 32... Nd2 {[%clk 0:00:07.4]} 33. hxg6+ {[%clk 0:00:55.6]}
33... hxg6 {[%clk 0:00:08.3]} 34. Ne2 {[%clk 0:00:45.7]} 34... Nc4 {[%clk
0:00:07.3]} 35. Nd4 {[%clk 0:00:42.5]} 35... Ba4 {[%clk 0:00:07.3]} 36. Rc1
{[%clk 0:00:21.7]} 36... Rxb4 {[%clk 0:00:06.4]} 37. e4 {[%clk 0:00:22.3]} 37...
Nb2 {[%clk 0:00:04.5]} 38. Be2 {[%clk 0:00:06.2]} 38... Rxd4 {[%clk 0:00:04.2]}
39. Rc7 {[%clk 0:00:05.1]} 39... Rxe4 {[%clk 0:00:03.4]} 40. Be3 {[%clk
0:00:03.3]} 40... d4 {[%clk 0:00:02.9]} 41. Bf3 {[%clk 0:00:03]} 41... dxe3
{[%clk 0:00:03.3]} 42. Bxe4 {[%clk 0:00:02.8]} 42... e2 {[%clk 0:00:03.8]} 43.
Rc1 {[%clk 0:00:02.9]} 43... Bd1 {[%clk 0:00:03.5]} 44. Bd5+ {[%clk 0:00:02.9]}
44... Ke7 {[%clk 0:00:03.8]} 0-1

[Event "*** Titled Tuesday Blitz"]
[Site "Chess.com"]
[Date "2020.05.12"]
[Round "7"]
[White "blitzking1729"]
[Black "Nastya_Rakhmangulova"]
[Result "1/2-1/2"]
[WhiteElo "2489"]
[BlackElo "2286"]
[TimeControl "180+1"]
[EndTime "11:17:17 PDT"]
[Termination "Game drawn by repetition"]

1. Nf3 {[%clk 0:03:00.9]} 1... d5 {[%clk 0:03:00]} 2. g3 {[%clk 0:03:01.6]} 2...
c6 {[%clk 0:03:00.5]} 3. Bg2 {[%clk 0:03:02.3]} 3... Bg4 {[%clk 0:03:01.2]} 4.
O-O {[%clk 0:03:03.2]} 4... Nd7 {[%clk 0:03:01.8]} 5. d3 {[%clk 0:03:03.4]} 5...
e5 {[%clk 0:02:54.7]} 6. c4 {[%clk 0:03:02.2]} 6... Ngf6 {[%clk 0:02:52.3]} 7.
cxd5 {[%clk 0:03:01.5]} 7... cxd5 {[%clk 0:02:52.3]} 8. Nc3 {[%clk 0:02:53]}
8... Bd6 {[%clk 0:02:39.5]} 9. Qb3 {[%clk 0:02:49.5]} 9... Nc5 {[%clk 0:02:38]}
10. Qc2 {[%clk 0:02:39.9]} 10... O-O {[%clk 0:02:34.6]} 11. d4 {[%clk
0:02:38.6]} 11... exd4 {[%clk 0:02:18]} 12. Nxd4 {[%clk 0:02:39.5]} 12... Rc8
{[%clk 0:02:17.8]} 13. Bg5 {[%clk 0:02:35.9]} 13... Nce4 {[%clk 0:02:06.2]} 14.
Bxf6 {[%clk 0:02:27.5]} 14... Nxf6 {[%clk 0:01:31.3]} 15. Qb3 {[%clk 0:02:22]}
15... Bc5 {[%clk 0:01:23.3]} 16. Rfd1 {[%clk 0:02:20.6]} 16... Qb6 {[%clk
0:01:12.9]} 17. Qxb6 {[%clk 0:02:19.9]} 17... Bxb6 {[%clk 0:01:13.8]} 18. h3
{[%clk 0:02:10.8]} 18... Rc4 {[%clk 0:00:49.3]} 19. Nb3 {[%clk 0:01:52.4]} 19...
Bf5 {[%clk 0:00:26]} 20. Nxd5 {[%clk 0:01:47.7]} 20... Nxd5 {[%clk 0:00:26]} 21.
Rxd5 {[%clk 0:01:46.1]} 21... Be6 {[%clk 0:00:22.4]} 22. Rd2 {[%clk 0:01:45]}
22... Rfc8 {[%clk 0:00:22.4]} 23. Bxb7 {[%clk 0:01:43.1]} 23... Rb8 {[%clk
0:00:21.3]} 24. Bg2 {[%clk 0:01:39.5]} 24... a5 {[%clk 0:00:21.7]} 25. Rad1
{[%clk 0:01:34.4]} 25... a4 {[%clk 0:00:20.6]} 26. Nd4 {[%clk 0:01:32.4]} 26...
Bxd4 {[%clk 0:00:18.1]} 27. Rxd4 {[%clk 0:01:32.4]} 27... g6 {[%clk 0:00:15.6]}
28. Rd8+ {[%clk 0:01:27.1]} 28... Rxd8 {[%clk 0:00:15]} 29. Rxd8+ {[%clk
0:01:28]} 29... Kg7 {[%clk 0:00:15.9]} 30. Rd2 {[%clk 0:01:09.6]} 30... Rc1+
{[%clk 0:00:15]} 31. Kh2 {[%clk 0:01:09.8]} 31... Bxa2 {[%clk 0:00:15.9]} 32.
Bf3 {[%clk 0:01:00.4]} 32... Bb3 {[%clk 0:00:15.5]} 33. Kg2 {[%clk 0:01:00.1]}
33... h5 {[%clk 0:00:14.7]} 34. h4 {[%clk 0:00:59.6]} 34... Kf6 {[%clk
0:00:12.1]} 35. e3 {[%clk 0:00:59.5]} 35... Ke5 {[%clk 0:00:06.7]} 36. Bb7
{[%clk 0:00:57.4]} 36... Be6 {[%clk 0:00:03.1]} 37. f4+ {[%clk 0:00:56.5]} 37...
Kf6 {[%clk 0:00:03.1]} 38. Bf3 {[%clk 0:00:49.2]} 38... Bc4 {[%clk 0:00:02.9]}
39. e4 {[%clk 0:00:48.4]} 39... Bf1+ {[%clk 0:00:02]} 40. Kf2 {[%clk 0:00:47.4]}
40... Bc4 {[%clk 0:00:02.9]} 41. e5+ {[%clk 0:00:47.3]} 41... Ke6 {[%clk
0:00:02.6]} 42. Bg2 {[%clk 0:00:38]} 42... Bb3 {[%clk 0:00:02.2]} 43. Bh3+
{[%clk 0:00:37.2]} 43... Ke7 {[%clk 0:00:02.9]} 44. Bg2 {[%clk 0:00:29.3]} 44...
Be6 {[%clk 0:00:02.7]} 45. Bf3 {[%clk 0:00:26.9]} 45... Rc4 {[%clk 0:00:02.7]}
46. Bd1 {[%clk 0:00:25.5]} 46... Rb4 {[%clk 0:00:03.1]} 47. Ke3 {[%clk
0:00:23.3]} 47... Bf5 {[%clk 0:00:01.5]} 48. Kf2 {[%clk 0:00:20.6]} 48... Rc4
{[%clk 0:00:01.3]} 49. Be2 {[%clk 0:00:19.9]} 49... Rb4 {[%clk 0:00:02]} 50. Bd1
{[%clk 0:00:19.6]} 50... Be6 {[%clk 0:00:02.5]} 51. Ke3 {[%clk 0:00:19]} 51...
Bf5 {[%clk 0:00:03.2]} 52. Kf2 {[%clk 0:00:15.1]} 1/2-1/2

[Event "*** Titled Tuesday Blitz"]
[Site "Chess.com"]
[Date "2020.05.12"]
[Round "7"]
[White "Abund"]
[Black "Fandorine"]
[Result "0-1"]
[WhiteElo "2625"]
[BlackElo "2857"]
[TimeControl "180+1"]
[EndTime "11:17:20 PDT"]
[Termination "Fandorine won by resignation"]

1. d4 {[%clk 0:03:00.9]} 1... Nf6 {[%clk 0:02:59.8]} 2. c4 {[%clk 0:02:59.4]}
2... g6 {[%clk 0:03:00.3]} 3. Nc3 {[%clk 0:02:59]} 3... Bg7 {[%clk 0:03:00.8]}
4. e4 {[%clk 0:02:58.7]} 4... d6 {[%clk 0:03:01]} 5. Nf3 {[%clk 0:02:58.9]} 5...
O-O {[%clk 0:03:01.1]} 6. Be2 {[%clk 0:02:59.5]} 6... e5 {[%clk 0:03:01.6]} 7.
O-O {[%clk 0:02:59.9]} 7... exd4 {[%clk 0:03:01.6]} 8. Nxd4 {[%clk 0:02:59.9]}
8... Re8 {[%clk 0:03:02.4]} 9. Bd3 {[%clk 0:02:39.7]} 9... Nbd7 {[%clk 0:02:59]}
10. Re1 {[%clk 0:02:34.9]} 10... Nc5 {[%clk 0:02:51.5]} 11. Bc2 {[%clk
0:02:14.4]} 11... a5 {[%clk 0:02:47.9]} 12. h3 {[%clk 0:02:01.2]} 12... c6
{[%clk 0:02:46.4]} 13. Rb1 {[%clk 0:01:57]} 13... Nfd7 {[%clk 0:02:40.9]} 14.
Bf4 {[%clk 0:01:50.5]} 14... Ne5 {[%clk 0:02:40.5]} 15. b3 {[%clk 0:01:46.2]}
15... a4 {[%clk 0:02:39.1]} 16. Qd2 {[%clk 0:01:39.4]} 16... axb3 {[%clk
0:02:32.8]} 17. axb3 {[%clk 0:01:38.3]} 17... Ne6 {[%clk 0:02:27.6]} 18. Be3
{[%clk 0:01:29.9]} 18... Nxd4 {[%clk 0:01:29.5]} 19. Bxd4 {[%clk 0:01:27.8]}
19... c5 {[%clk 0:01:05.2]} 20. Be3 {[%clk 0:01:24.8]} 20... Be6 {[%clk
0:01:05.1]} 21. Ra1 {[%clk 0:00:59]} 21... Rxa1 {[%clk 0:00:55.2]} 22. Rxa1
{[%clk 0:00:59.9]} 22... Bxh3 {[%clk 0:00:55.5]} 23. Rd1 {[%clk 0:00:54.8]}
23... Bg4 {[%clk 0:00:54]} 24. Rb1 {[%clk 0:00:46.9]} 24... Qh4 {[%clk
0:00:42.7]} 25. Qxd6 {[%clk 0:00:28]} 25... Nf3+ {[%clk 0:00:40.1]} 26. gxf3
{[%clk 0:00:21.6]} 26... Bxf3 {[%clk 0:00:39.8]} 27. Qh2 {[%clk 0:00:19.9]}
27... Qg4+ {[%clk 0:00:39.7]} 28. Qg3 {[%clk 0:00:19.4]} 28... Qxg3+ {[%clk
0:00:35.8]} 29. fxg3 {[%clk 0:00:19.6]} 29... Bxc3 {[%clk 0:00:36.7]} 30. Bxc5
{[%clk 0:00:19.5]} 30... Bxe4 {[%clk 0:00:35.7]} 31. Bxe4 {[%clk 0:00:18.3]}
31... Rxe4 {[%clk 0:00:36.6]} 32. Rd1 {[%clk 0:00:18.7]} 32... Re1+ {[%clk
0:00:21.5]} 33. Rxe1 {[%clk 0:00:19]} 33... Bxe1 {[%clk 0:00:22.4]} 34. Kg2
{[%clk 0:00:19.6]} 34... f5 {[%clk 0:00:22.2]} 35. Kf3 {[%clk 0:00:17.5]} 35...
h5 {[%clk 0:00:21.7]} 36. Kf4 {[%clk 0:00:15.9]} 36... Kf7 {[%clk 0:00:21]} 37.
Bd4 {[%clk 0:00:12.7]} 37... Ke6 {[%clk 0:00:18.9]} 38. Bb2 {[%clk 0:00:07.8]}
38... Bd2+ {[%clk 0:00:18.2]} 39. Kf3 {[%clk 0:00:07.7]} 39... g5 {[%clk
0:00:18.5]} 40. Bd4 {[%clk 0:00:07.8]} 40... g4+ {[%clk 0:00:16.6]} 41. Kf2
{[%clk 0:00:07.4]} 41... Bg5 {[%clk 0:00:14.1]} 42. b4 {[%clk 0:00:06.9]} 42...
f4 {[%clk 0:00:12.2]} 43. gxf4 {[%clk 0:00:03.1]} 43... Bxf4 {[%clk 0:00:12.1]}
44. b5 {[%clk 0:00:03.5]} 44... h4 {[%clk 0:00:09.2]} 45. c5 {[%clk 0:00:03.4]}
45... Kd5 {[%clk 0:00:09.5]} 46. Bf6 {[%clk 0:00:02]} 46... Bg3+ {[%clk
0:00:08.6]} 47. Kg2 {[%clk 0:00:01.6]} 47... Kxc5 {[%clk 0:00:08.9]} 48. Bxh4
{[%clk 0:00:02.1]} 48... Bxh4 {[%clk 0:00:08]} 0-1

[Event "*** Titled Tuesday Blitz"]
[Site "Chess.com"]
[Date "2020.05.12"]
[Round "7"]
[White "vovachesss"]
[Black "smshk35"]
[Result "0-1"]
[WhiteElo "2604"]
[BlackElo "2408"]
[TimeControl "180+1"]
[EndTime "11:17:20 PDT"]
[Termination "smshk35 won by resignation"]

1. d4 {[%clk 0:02:07.6]} 1... Nf6 {[%clk 0:02:59.5]} 2. Nc3 {[%clk 0:02:05.5]}
2... g6 {[%clk 0:02:59.8]} 3. e4 {[%clk 0:02:05.7]} 3... d6 {[%clk 0:03:00.2]}
4. g3 {[%clk 0:02:03.4]} 4... Bg7 {[%clk 0:03:00]} 5. Bg2 {[%clk 0:02:03.8]}
5... O-O {[%clk 0:02:58.3]} 6. Nge2 {[%clk 0:01:52.2]} 6... e5 {[%clk
0:02:57.9]} 7. h3 {[%clk 0:01:51.9]} 7... Nc6 {[%clk 0:02:57.5]} 8. Be3 {[%clk
0:01:51.9]} 8... exd4 {[%clk 0:02:55.6]} 9. Nxd4 {[%clk 0:01:51.8]} 9... Re8
{[%clk 0:02:56.1]} 10. O-O {[%clk 0:01:51.9]} 10... Nd7 {[%clk 0:02:48.6]} 11.
Re1 {[%clk 0:01:44.6]} 11... Nxd4 {[%clk 0:02:35.8]} 12. Bxd4 {[%clk 0:01:44.6]}
12... Nc5 {[%clk 0:02:35.7]} 13. Nd5 {[%clk 0:01:26.7]} 13... c6 {[%clk
0:02:28.7]} 14. Bxg7 {[%clk 0:01:26.7]} 14... Kxg7 {[%clk 0:02:19.8]} 15. Qd4+
{[%clk 0:01:26.5]} 15... f6 {[%clk 0:02:17.5]} 16. Nc3 {[%clk 0:01:25.8]} 16...
Qe7 {[%clk 0:02:04.5]} 17. Rad1 {[%clk 0:01:25]} 17... Rd8 {[%clk 0:02:04.9]}
18. f4 {[%clk 0:01:23.6]} 18... Ne6 {[%clk 0:01:57.2]} 19. Qf2 {[%clk
0:01:20.6]} 19... Bd7 {[%clk 0:01:53.4]} 20. a4 {[%clk 0:01:16.1]} 20... Be8
{[%clk 0:01:53.3]} 21. Rd2 {[%clk 0:01:14.3]} 21... Bf7 {[%clk 0:01:49.4]} 22.
h4 {[%clk 0:01:12.3]} 22... h5 {[%clk 0:01:48.5]} 23. Bh3 {[%clk 0:01:07]} 23...
a5 {[%clk 0:01:46.1]} 24. Bxe6 {[%clk 0:01:02.9]} 24... Bxe6 {[%clk 0:01:45.6]}
25. f5 {[%clk 0:01:03.8]} 25... Bf7 {[%clk 0:01:40.4]} 26. Qf3 {[%clk
0:00:47.8]} 26... d5 {[%clk 0:01:35.9]} 27. Rf1 {[%clk 0:00:34.4]} 27... dxe4
{[%clk 0:01:29.4]} 28. Nxe4 {[%clk 0:00:31.2]} 28... Rxd2 {[%clk 0:01:19.8]} 29.
Nxd2 {[%clk 0:00:31.3]} 29... Re8 {[%clk 0:01:19.4]} 30. fxg6 {[%clk 0:00:30.9]}
30... Bxg6 {[%clk 0:01:14.7]} 31. Qf2 {[%clk 0:00:30.7]} 31... Qe3 {[%clk
0:01:09.7]} 32. Nc4 {[%clk 0:00:30.5]} 32... Qxf2+ {[%clk 0:00:58.3]} 33. Kxf2
{[%clk 0:00:24.3]} 33... Bxc2 {[%clk 0:00:56.1]} 34. Nxa5 {[%clk 0:00:24.9]}
34... Bxa4 {[%clk 0:00:52.5]} 35. Nxb7 {[%clk 0:00:24.8]} 35... Rb8 {[%clk
0:00:50.4]} 36. Nc5 {[%clk 0:00:24.4]} 36... Rxb2+ {[%clk 0:00:50.3]} 37. Ke3
{[%clk 0:00:24.9]} 37... Bb5 {[%clk 0:00:48.3]} 38. Rd1 {[%clk 0:00:24.3]} 38...
Rg2 {[%clk 0:00:40.1]} 39. Rd7+ {[%clk 0:00:23.5]} 39... Kg6 {[%clk 0:00:35.7]}
40. Kf3 {[%clk 0:00:23.7]} 40... Rc2 {[%clk 0:00:29.7]} 41. Ne6 {[%clk
0:00:22.8]} 41... Be2+ {[%clk 0:00:27.9]} 42. Ke3 {[%clk 0:00:22]} 42... Bg4
{[%clk 0:00:27.5]} 43. Rg7+ {[%clk 0:00:22]} 43... Kh6 {[%clk 0:00:24.3]} 44.
Rxg4 {[%clk 0:00:14.2]} 44... hxg4 {[%clk 0:00:23.1]} 45. Nd4 {[%clk 0:00:15.1]}
45... Rc3+ {[%clk 0:00:22.2]} 46. Kf4 {[%clk 0:00:14.9]} 46... Kh5 {[%clk
0:00:20.4]} 47. Nf5 {[%clk 0:00:12.5]} 47... Rf3+ {[%clk 0:00:20.4]} 48. Ke4
{[%clk 0:00:13.4]} 48... c5 {[%clk 0:00:16.9]} 49. Ng7+ {[%clk 0:00:12.7]} 49...
Kg6 {[%clk 0:00:16.7]} 50. Ne6 {[%clk 0:00:11.7]} 50... f5+ {[%clk 0:00:16.5]}
51. Kd5 {[%clk 0:00:10.9]} 51... Rxg3 {[%clk 0:00:16.9]} 52. Nf4+ {[%clk
0:00:11.2]} 52... Kh6 {[%clk 0:00:16.7]} 53. Kxc5 {[%clk 0:00:10.9]} 53... Rf3
{[%clk 0:00:17.2]} 54. Ne2 {[%clk 0:00:08.9]} 54... Kh5 {[%clk 0:00:17.4]} 55.
Kd4 {[%clk 0:00:08.5]} 55... Kxh4 {[%clk 0:00:17.9]} 56. Ke5 {[%clk 0:00:08.5]}
56... g3 {[%clk 0:00:17.3]} 57. Nf4 {[%clk 0:00:07.9]} 57... Rxf4 {[%clk
0:00:16.8]} 0-1

[Event "*** Titled Tuesday Blitz"]
[Site "Chess.com"]
[Date "2020.05.12"]
[Round "7"]
[White "petincash"]
[Black "warmoatmeal"]
[Result "1-0"]
[WhiteElo "2367"]
[BlackElo "2206"]
[TimeControl "180+1"]
[EndTime "11:17:20 PDT"]
[Termination "petincash won on time"]

1. Nf3 {[%clk 0:03:00.9]} 1... Nf6 {[%clk 0:02:56.6]} 2. g3 {[%clk 0:03:01.5]}
2... d5 {[%clk 0:02:55.7]} 3. Bg2 {[%clk 0:03:02]} 3... c6 {[%clk 0:02:56.6]} 4.
O-O {[%clk 0:03:02.3]} 4... Bg4 {[%clk 0:02:55.6]} 5. d3 {[%clk 0:03:02.9]} 5...
e6 {[%clk 0:02:55.7]} 6. c4 {[%clk 0:03:02.8]} 6... Nbd7 {[%clk 0:02:55.5]} 7.
Nc3 {[%clk 0:03:01.7]} 7... Be7 {[%clk 0:02:53.5]} 8. Qb3 {[%clk 0:03:01]} 8...
Qb6 {[%clk 0:02:52.1]} 9. Be3 {[%clk 0:03:00.7]} 9... Qxb3 {[%clk 0:02:49.1]}
10. axb3 {[%clk 0:03:01.6]} 10... a6 {[%clk 0:02:46.7]} 11. Na4 {[%clk
0:02:51.1]} 11... O-O {[%clk 0:02:33.4]} 12. Nb6 {[%clk 0:02:47.6]} 12... Nxb6
{[%clk 0:02:28]} 13. Bxb6 {[%clk 0:02:48.5]} 13... Bd8 {[%clk 0:02:26.8]} 14.
Bc5 {[%clk 0:02:39.4]} 14... Re8 {[%clk 0:02:15.9]} 15. b4 {[%clk 0:02:40]}
15... Be7 {[%clk 0:02:15.4]} 16. Rfe1 {[%clk 0:02:29.3]} 16... Bxc5 {[%clk
0:02:13.9]} 17. bxc5 {[%clk 0:02:30.2]} 17... dxc4 {[%clk 0:02:13.7]} 18. dxc4
{[%clk 0:02:27.4]} 18... Bxf3 {[%clk 0:02:12.4]} 19. Bxf3 {[%clk 0:02:25]} 19...
Red8 {[%clk 0:02:12.9]} 20. Red1 {[%clk 0:02:14.5]} 20... Kf8 {[%clk 0:02:12.5]}
21. Kf1 {[%clk 0:02:10.6]} 21... Ke7 {[%clk 0:02:12]} 22. Ke1 {[%clk 0:02:10.8]}
22... Rxd1+ {[%clk 0:02:11.2]} 23. Kxd1 {[%clk 0:02:09.5]} 23... Rd8+ {[%clk
0:02:12.1]} 24. Kc2 {[%clk 0:02:08]} 24... Rd7 {[%clk 0:02:05.9]} 25. e3 {[%clk
0:01:52.9]} 25... Ne8 {[%clk 0:01:53.3]} 26. b4 {[%clk 0:01:49.9]} 26... Nc7
{[%clk 0:01:52.9]} 27. Kc3 {[%clk 0:01:46.5]} 27... e5 {[%clk 0:01:52.3]} 28. h4
{[%clk 0:01:43.8]} 28... f6 {[%clk 0:01:52.4]} 29. h5 {[%clk 0:01:36.2]} 29...
Ne6 {[%clk 0:01:51.7]} 30. Be4 {[%clk 0:01:32.3]} 30... h6 {[%clk 0:01:50.6]}
31. Bf5 {[%clk 0:01:29.1]} 31... Rd8 {[%clk 0:01:48]} 32. f4 {[%clk 0:01:19.7]}
32... Rd7 {[%clk 0:01:19.3]} 33. Rb1 {[%clk 0:01:12.1]} 33... Rd8 {[%clk
0:01:14]} 34. Rg1 {[%clk 0:01:08.9]} 34... Nc7 {[%clk 0:01:01]} 35. g4 {[%clk
0:01:03.9]} 35... exf4 {[%clk 0:00:58.1]} 36. exf4 {[%clk 0:01:03.1]} 36... Kf7
{[%clk 0:00:57.5]} 37. Re1 {[%clk 0:01:01.7]} 37... Ra8 {[%clk 0:00:50.5]} 38.
Rd1 {[%clk 0:00:53.2]} 38... Kf8 {[%clk 0:00:35.8]} 39. Rd7 {[%clk 0:00:51]}
39... Ne8 {[%clk 0:00:36]} 40. Rxb7 {[%clk 0:00:48.4]} 40... a5 {[%clk 0:00:36]}
41. b5 {[%clk 0:00:42.3]} 41... a4 {[%clk 0:00:21.6]} 42. Kb2 {[%clk 0:00:39.2]}
42... a3+ {[%clk 0:00:18.4]} 43. Ka2 {[%clk 0:00:39.1]} 43... Ra4 {[%clk
0:00:17.7]} 44. Be6 {[%clk 0:00:35.4]} 44... cxb5 {[%clk 0:00:15.2]} 45. cxb5
{[%clk 0:00:18]} 45... Re4 {[%clk 0:00:10]} 46. Rf7+ {[%clk 0:00:15.5]} 46...
Kg8 {[%clk 0:00:09.7]} 47. Bd5 {[%clk 0:00:12.8]} 47... Re2+ {[%clk 0:00:06.2]}
48. Kxa3 {[%clk 0:00:12.7]} 48... Kh7 {[%clk 0:00:04.6]} 49. Rd7 {[%clk
0:00:10.7]} 49... f5 {[%clk 0:00:03.3]} 50. g5 {[%clk 0:00:10.1]} 50... Re3+
{[%clk 0:00:01.4]} 51. Kb4 {[%clk 0:00:09.3]} 51... hxg5 {[%clk 0:00:01.8]} 52.
fxg5 {[%clk 0:00:09]} 52... f4 {[%clk 0:00:02.3]} 53. b6 {[%clk 0:00:07.5]}
53... f3 {[%clk 0:00:01.6]} 54. Rf7 {[%clk 0:00:07.4]} 1-0

[Event "*** Titled Tuesday Blitz"]
[Site "Chess.com"]
[Date "2020.05.12"]
[Round "7"]
[White "Leonid_Starozhilov"]
[Black "Zufi1811"]
[Result "1-0"]
[WhiteElo "2650"]
[BlackElo "2456"]
[TimeControl "180+1"]
[EndTime "11:17:21 PDT"]
[Termination "Leonid_Starozhilov won on time"]

1. e4 {[%clk 0:03:00.9]} 1... c5 {[%clk 0:02:58.6]} 2. Nf3 {[%clk 0:03:00.8]}
2... d6 {[%clk 0:02:59.2]} 3. Bb5+ {[%clk 0:03:00.7]} 3... Nd7 {[%clk
0:02:58.3]} 4. O-O {[%clk 0:03:00.6]} 4... Nf6 {[%clk 0:02:57.9]} 5. Re1 {[%clk
0:03:00.4]} 5... a6 {[%clk 0:02:56.7]} 6. Bxd7+ {[%clk 0:03:00.4]} 6... Bxd7
{[%clk 0:02:55.5]} 7. c3 {[%clk 0:03:00.9]} 7... Bc6 {[%clk 0:02:54.2]} 8. d4
{[%clk 0:03:01.4]} 8... cxd4 {[%clk 0:02:51.8]} 9. cxd4 {[%clk 0:02:58.5]} 9...
Bxe4 {[%clk 0:02:48.9]} 10. Nc3 {[%clk 0:02:58.7]} 10... Bxf3 {[%clk 0:02:44]}
11. Qxf3 {[%clk 0:02:59.6]} 11... d5 {[%clk 0:02:05.1]} 12. Bg5 {[%clk
0:02:58.4]} 12... e6 {[%clk 0:01:49.7]} 13. Bxf6 {[%clk 0:02:55.7]} 13... gxf6
{[%clk 0:01:42.3]} 14. Nxd5 {[%clk 0:02:43.6]} 14... Bg7 {[%clk 0:01:35.5]} 15.
Nf4 {[%clk 0:02:20.9]} 15... Qxd4 {[%clk 0:01:34.6]} 16. Rad1 {[%clk 0:02:16]}
16... Qxb2 {[%clk 0:01:33.8]} 17. Nxe6 {[%clk 0:00:49.3]} 17... fxe6 {[%clk
0:01:30]} 18. Qh5+ {[%clk 0:00:49.8]} 18... Ke7 {[%clk 0:01:19.7]} 19. Rb1
{[%clk 0:00:48.8]} 19... Qxb1 {[%clk 0:00:59]} 20. Rxb1 {[%clk 0:00:48.2]} 20...
b5 {[%clk 0:00:58.2]} 21. a4 {[%clk 0:00:44.7]} 21... f5 {[%clk 0:00:47.8]} 22.
Qh4+ {[%clk 0:00:39.1]} 22... Bf6 {[%clk 0:00:46.2]} 23. Qb4+ {[%clk 0:00:39.6]}
23... Kf7 {[%clk 0:00:46]} 24. axb5 {[%clk 0:00:40.2]} 24... axb5 {[%clk
0:00:46]} 25. Qxb5 {[%clk 0:00:40.8]} 25... Ra2 {[%clk 0:00:35.9]} 26. Qd7+
{[%clk 0:00:35]} 26... Be7 {[%clk 0:00:33.1]} 27. Re1 {[%clk 0:00:31.9]} 27...
Ra6 {[%clk 0:00:27.3]} 28. g3 {[%clk 0:00:31.8]} 28... Rd8 {[%clk 0:00:24.9]}
29. Qb7 {[%clk 0:00:29.5]} 29... Rad6 {[%clk 0:00:24.8]} 30. Qf3 {[%clk
0:00:28.2]} 30... Kg6 {[%clk 0:00:22]} 31. Re2 {[%clk 0:00:23.2]} 31... h5
{[%clk 0:00:17.1]} 32. Kg2 {[%clk 0:00:21.4]} 32... Bf6 {[%clk 0:00:17]} 33. Qb3
{[%clk 0:00:18.9]} 33... e5 {[%clk 0:00:15.5]} 34. Qc2 {[%clk 0:00:19]} 34... e4
{[%clk 0:00:15]} 35. h3 {[%clk 0:00:17.4]} 35... Rd4 {[%clk 0:00:13.6]} 36. Qc7
{[%clk 0:00:12]} 36... R8d7 {[%clk 0:00:12.2]} 37. Qc8 {[%clk 0:00:11]} 37...
Rd8 {[%clk 0:00:10.9]} 38. Qe6 {[%clk 0:00:11]} 38... R4d6 {[%clk 0:00:09.2]}
39. Qc4 {[%clk 0:00:10]} 39... Rd5 {[%clk 0:00:08.9]} 40. Qc1 {[%clk 0:00:10]}
40... Bg5 {[%clk 0:00:08]} 41. Qb1 {[%clk 0:00:09.1]} 41... Bf6 {[%clk
0:00:08.9]} 42. g4 {[%clk 0:00:07.9]} 42... hxg4 {[%clk 0:00:09.8]} 43. hxg4
{[%clk 0:00:08.2]} 43... Rd4 {[%clk 0:00:10.1]} 44. gxf5+ {[%clk 0:00:08]} 44...
Kxf5 {[%clk 0:00:10.3]} 45. f3 {[%clk 0:00:08]} 45... Rg8+ {[%clk 0:00:08.6]}
46. Kh2 {[%clk 0:00:06.9]} 46... Rh8+ {[%clk 0:00:07.4]} 47. Kg2 {[%clk
0:00:06.9]} 47... Rg8+ {[%clk 0:00:08]} 48. Kf1 {[%clk 0:00:07.2]} 48... Re8
{[%clk 0:00:04.1]} 49. Qb5+ {[%clk 0:00:05.5]} 49... Kf4 {[%clk 0:00:02.9]} 50.
Qxe8 {[%clk 0:00:04]} 1-0